Cogmind - Beta 16 @@@ ROGUE MODE // 2026.01.23 @ 15:11:43 Player: Assis Result: Destroyed by L-31 Rogue with Katana Performance ------------- Evolutions (1) 500 Regions Visited (2) 400 Robots Destroyed (18) 90 Value Destroyed (396) 396 Prototype IDs (2) 40 Alien Tech Used (0) 0 Bonus (0) 0 TOTAL SCORE: 1426 Bonus ------- None Cogmind --------- Core Integrity 0/400 Matter 282/300 Energy 71/100 System Corruption 0% Temperature Cool (55) Movement Core (200) Ox3 Location -9/Materials Parts ------- > --- POWER (1) -------- (None) > --- PROPULSION (2) --- (None) > --- UTILITY (4) ------ Small Storage Unit Visual Processing Unit Terrain Scan Processor Hacking Suite > --- WEAPON (2) ------- Beam Cannon Heavy Assault Rifle > --- INVENTORY (8) ---- Ion Engine Light Ion Engine Light Ion Engine Light Ion Engine Light Ion Engine Aluminum Leg Peak State ------------ > --- POWER ------------ Light Ion Engine > --- PROPULSION ------- Aluminum Leg Aluminum Leg > --- UTILITY ---------- Small Storage Unit Visual Processing Unit Terrain Scan Processor Hacking Suite > --- WEAPON ----------- Medium Laser Light Assault Rifle > --- INVENTORY -------- Ion Engine Light Ion Engine Light Ion Engine Light Ion Engine Light Ion Engine Aluminum Leg [Rating: 13] Favorites ----------- Power Light Ion Engine Engine Light Ion Engine Propulsion Aluminum Leg Leg Aluminum Leg Utility Small Storage Unit Device Heat Sink Storage Small Storage Unit Processor Visual Processing Unit Hackware Hacking Suite Weapon Light Assault Rifle Energy Gun Medium Laser Energy Cannon Beam Cannon Ballistic Gun Light Assault Rifle Build | -11 -10 -9 ------- Run | Yrd Mat Mat Slots Evolved 2 | . . 2 Power . | . . . Propulsion . | . . . Utility 2 | . . 2 Weapon . | . . . Parts Attached 24 | 7 7 10 Power 6 | 2 3 1 Engine 6 | 2 3 1 Core . | . . . Reactor . | . . . Propulsion 6 | 2 2 2 Treads . | . . . Leg 6 | 2 2 2 Wheel . | . . . Hover . | . . . Flight . | . . . Utility 5 | 1 1 3 Device 1 | . . 1 Storage 1 | 1 . . Processor 2 | . 1 1 Hackware 1 | . . 1 Protection . | . . . Artifact . | . . . Weapon 7 | 2 1 4 Energy Gun 2 | . . 2 Energy Cannon 1 | . . 1 Ballistic Gun 4 | 2 1 1 Ballistic Cannon . | . . . Launcher . | . . . Special Weapon . | . . . Impact Weapon . | . . . Slashing Weapon . | . . . Piercing Weapon . | . . . Special Melee Weapon . | . . . Unidentified Prototypes . | . . . Parts Lost 11 | . 2 9 Power 2 | . 1 1 Propulsion 3 | . . 3 Utility 1 | . . 1 Weapon 5 | . 1 4 Highest Loss Streak 6 | . 2 6 To Critical Strikes 1 | . 1 . Average Backups 4 | 1 3 5 Power 2 | . 1 4 Propulsion . | . . . Utility . | . . . Weapon . | . 1 . Tool/Special . | . . . Unused Backups 1 | . . 1 Power 1 | . . 1 Propulsion . | . . . Utility . | . . . Weapon . | . . . Tool/Special . | . . . Average Slot Usage (%) 91 | . 95 81 Engine 12 | . 13 10 Leg 24 | . 28 17 Storage 13 | . 14 11 Processor 13 | . 10 22 Ballistic Gun 23 | . 27 14 Peak Build Rating 13 | 6 8 13 Average Rating 7 | 4 7 9 On Entrance 4 | . 6 8 Avg Prop Armor Cover (%) . | . . . Naked Turns . | . . . Heaviest Build 13 | 13 13 11 Greatest Support 20 | 20 20 20 Greatest Overweight (x) 3 | 1 . 3 Average Overweight (x) . | . . . Largest Inventory Capacity 8 | 8 8 8 Average Capacity 7 | 7 8 8 Most Carried 8 | 2 8 7 Average Carried 4 | 1 3 5 Final Capacity 8 | 8 8 8 Final Carried 8 | 2 8 6 Class Distribution -------------------- 72% | Mutant 27% | Scavenger-Mutant Dominant Class ---------------- Mutant | -10/Materials Scavenger-Mutant | -9/Materials Resources | -11 -10 -9 ----------- Run | Yrd Mat Mat Matter Collected 579 | 231 228 120 Remotely . | . . . Salvage Created 493 | . 259 234 Parts 36 | . 24 12 Haulers Intercepted . | . . . Recyclers Shooed 1 | . 1 . Parts Field Recycled . | . . . Retrieved Matter . | . . . Parts Self-Destructed . | . . . Prevented . | . . . Parts Restored . | . . . Kills | -11 -10 -9 ------- Run | Yrd Mat Mat Combat Hostiles Destroyed 14 | . 9 5 Guns 13 | . 9 4 Cannons 1 | . . 1 Classes Destroyed 5 | . 4 1 Builder 1 | . 1 . Operator 3 | . 2 1 Swarmer 6 | . 6 . Grunt 7 | . 3 4 Sentry 1 | . . 1 Best Kill Streak 4 | . 4 2 Combat Bots Only 4 | . 4 2 Max Kills in Single Turn 2 | . 2 1 Gunslinging 1 | . 1 . Exploded . | . . . Melee . | . . . Uniques/NPCs Destroyed . | . . . Combat | -11 -10 -9 -------- Run | Yrd Mat Mat Hostile Shots Fired 185 | . 96 89 Missed 44 | . 25 19 Hits 141 | . 71 70 Melee 8 | . . 8 Projectile 133 | . 71 62 Critical Strikes 7 | . 2 5 Damage Taken 1652 | . 623 1029 Core 534 | . 127 407 Absorbed by Shields . | . . . Core Remaining (%) 74 | 100 49 . Volleys Fired 91 | . 58 33 Largest 2 | . 2 2 Hottest 116 | . 40 116 Shots Fired 159 | . 106 53 Gun 154 | . 106 48 Cannon 5 | . . 5 Launcher . | . . . Special . | . . . Kinetic 144 | . 106 38 Thermal 15 | . . 15 Explosive . | . . . Electromagnetic . | . . . Robot Hit Streak 11 | . 11 8 Robot Miss Streak 5 | . 5 2 Penetration Max . | . . . Secondary Targets 3 | . 3 . Max Gunslinging Chain 1 | . 1 . Shots Hit Robots 98 | . 59 39 Core Hits 34 | . 21 13 Critical Kills . | . . . Critical Parts Destroyed . | . . . Critical Strikes 2 | . . 2 Burn 2 | . . 2 Melee Attacks . | . . . Impact . | . . . Slashing . | . . . Piercing . | . . . Sneak Attacks . | . . . Combat Hostiles . | . . . Follow-up Attacks . | . . . Damage Inflicted 996 | . 571 425 Guns 910 | . 571 339 Cannons 86 | . . 86 Explosions . | . . . Melee . | . . . Ramming . | . . . Kinetic 797 | . 571 226 Thermal 199 | . . 199 Explosive . | . . . Electromagnetic . | . . . Impact . | . . . Slashing . | . . . Piercing . | . . . Highest Corruption . | . . . Average Corruption . | . . . Corruption Purged . | . . . Corruption Blocked . | . . . Overload Shots . | . . . Overflow Damage . | . . . Projectiles . | . . . Explosions . | . . . Melee . | . . . Knockbacks . | . . . Impact . | . . . Kinetic . | . . . Secondary . | . . . Self-Inflicted Damage . | . . . Shots . | . . . Rammed . | . . . Targets Rammed 1 | . 1 . Kicked 1 | . 1 . Crushed . | . . . Highest Temperature 111 | . 24 111 Average Temperature 29 | . 9 38 Received Heat Transfer 492 | . 96 396 Siege Activations . | . . . Martial Activations . | . . . Shielding Activations . | . . . Robots Disrupted . | . . . Combat Hostiles . | . . . Robots Corrupted . | . . . Combat Hostiles . | . . . Parts Fried . | . . . Impact Corruptions . | . . . Robots Melted . | . . . Combat Hostiles . | . . . Parts Melted 1 | . . 1 Heat Transferred 666 | . . 666 Parts Sabotaged . | . . . Parts Stolen . | . . . Parts Stripped . | . . . Power Chain Reactions . | . . . Alert | -11 -10 -9 ------- Run | Yrd Mat Mat Maximum Alert Level . | . . . Low Security (%) 100 | 100 100 100 Level 1 . | . . . Level 2 . | . . . Level 3 . | . . . Level 4 . | . . . Level 5 . | . . . High Security . | . . . Max Security . | . . . Peak Influence 80 | . 80 40 Initial 7 | . . 7 Average 16 | . 22 5 Influence Increases 416 | . 289 127 Destroy 0b10 Robot/C 280 | . 180 100 Destroy 0b10 Robot/NC 20 | . 15 5 Destroy Leader 60 | . 40 20 Successful Hack 11 | . 9 2 Lose Combat Pursuer 45 | . 45 . Influence Decreases 386 | . 271 115 Entered New Map 11 | . . 11 Time Decay 340 | . 256 84 Lost Part 35 | . 15 20 Squads Dispatched 4 | . 2 2 Investigation . | . . . Extermination . | . . . Reinforcement 4 | . 2 2 Assault . | . . . Garrison . | . . . Intercept . | . . . Searches Triggered . | . . . Construction Impeded . | . . . Haulers Reinforced . | . . . Active Scanning Responses . | . . . Cargo Convoy Interrupts . | . . . Stealth | -11 -10 -9 --------- Run | Yrd Mat Mat Distress Signals 5 | . 3 2 Communications Jammed . | . . . Distress Signals . | . . . Times Spotted 36 | . 21 15 Peak Tracking Total 8 | . 5 8 Tactical Retreats 1 | . 1 . Traps | -11 -10 -9 ------- Run | Yrd Mat Mat Traps Triggered . | . . . Indirectly . | . . . Trap Hack Attempts . | . . . Triggered . | . . . Disarmed . | . . . Reprogrammed . | . . . Reused . | . . . Traps Extracted . | . . . Installed . | . . . Triggered . | . . . Machines | -11 -10 -9 ---------- Run | Yrd Mat Mat Machines Disabled . | . . . Max in Single Turn . | . . . Machines Repaired . | . . . Machines Dismantled . | . . . Machines Sabotaged . | . . . Overloaded Fab Kills . | . . . Hacking | -11 -10 -9 --------- Run | Yrd Mat Mat Machines Accessed 4 | . 3 1 Terminals 3 | . 3 . Fabricators . | . . . Repair Stations . | . . . Recycling Units . | . . . Scanalyzers 1 | . . 1 Garrison Access . | . . . Total Hacks 15 | . 10 5 Successful 9 | . 5 4 Failed 5 | . 5 . Catastrophic . | . . . Database Lockouts 1 | . . 1 Manual 1 | . 1 . Terminals 10 | . 10 . Fabricators . | . . . Repair Stations . | . . . Recycling Units . | . . . Scanalyzers 5 | . . 5 Garrison Access . | . . . Terminal Hacks 5 | . 5 . Prototype ID Bank 1 | . 1 . Emergency Access Points 1 | . 1 . Terminal Index 1 | . 1 . Dispatch Records 1 | . 1 . Zone Layout 1 | . 1 . Fabricator Hacks . | . . . Repair Station Hacks . | . . . Recycling Unit Hacks . | . . . Scanalyzer 4 | . . 4 Retrieve Study 4 | . . 4 Garrison Access Hacks . | . . . Unauthorized Hacks . | . . . Terminals . | . . . Fabricators . | . . . Repair Stations . | . . . Recycling Units . | . . . Scanalyzers . | . . . Garrison Access . | . . . Data Cores Recovered . | . . . Used . | . . . Hacking Detections 3 | . 3 . Full Trace Events . | . . . Feedback Events . | . . . Feedback Blocked . | . . . Robot Schematics Acquired . | . . . Robots Built . | . . . Authchips . | . . . Time . | . . . Total Robot Build Rating . | . . . Part Schematics Acquired . | . . . Parts Built . | . . . Authchips . | . . . Time . | . . . Total Part Build Rating . | . . . Part Studies Acquired 4 | . . 4 Parts Repaired . | . . . Time . | . . . Parts Recycled . | . . . Recycled Matter . | . . . Retrieved Matter . | . . . Retrieved Components . | . . . Parts Scanalyzed . | . . . Part Schematics Acquired . | . . . Parts Damaged . | . . . Bothacking | -11 -10 -9 ------------ Run | Yrd Mat Mat Used RIF Installer . | . . . Robots Hacked . | . . . Non-combat . | . . . Combat . | . . . Robot Hacks Applied . | . . . Relay Couplers Released . | . . . Fabnet Peak Effective % . | . . . Robots Rewired . | . . . Allies Hacked . | . . . Hacks Repelled . | . . . Allies | -11 -10 -9 -------- Run | Yrd Mat Mat Total Allies . | . . . Largest Group . | . . . Highest-Rated Group . | . . . Highest-Rated Ally . | . . . Total Orders . | . . . Ally Attacks . | . . . Total Damage . | . . . Kills . | . . . Allies Corrupted . | . . . Allies Melted . | . . . Intel | -11 -10 -9 ------- Run | Yrd Mat Mat Active Infowar (turns) 1002 | . 632 370 Optics 1002 | . 632 370 Robot Analysis Total . | . . . Derelict Logs Recovered . | . . . Drone Launches . | . . . Drone Recoveries . | . . . Exploration | -11 -10 -9 ------------- Run | Yrd Mat Mat Turns Passed 1300 | 78 852 370 Spaces Moved 665 | 55 442 168 Core 16 | 11 . 5 Treads . | . . . Legs 649 | 44 442 163 Wheels . | . . . Hover . | . . . Flight . | . . . Fastest Speed 50 | 50 120 105 Average Speed 118 | 122 120 114 Slowest Speed 200 | 190 120 200 Overloaded Moves . | . . . Propulsion Burnouts . | . . . Robots Hopped . | . . . Potential Cave-ins . | . . . Cave-ins Triggered . | . . . Exploration Rate (%) 17 | 4 33 15 Regions Visited 2 Branch Regions . Pre-discovered Areas . | . . . Known Exits Taken . | . . . Unknown Exits Taken 2 | 1 1 . Scrap Searched . | . . . Spaces Dug . | . . . Terrain Destroyed . | . . . Melee . | . . . Projectile . | . . . AOE . | . . . Terrain Rammed . | . . . Walls Destroyed . | . . . Machines Disabled . | . . . Actions | -11 -10 -9 --------- Run | Yrd Mat Mat Total 1029 | 62 669 298 Wait 245 | . 160 85 Move 663 | 54 441 168 Hop . | . . . Pick Up 3 | 1 2 . Fast Attach 15 | 6 3 6 Attach 2 | . . 2 Detach . | . . . Swap 7 | 1 4 2 Drop 2 | . . 2 Fire 91 | . 58 33 Melee . | . . . Ram . | . . . Kick 1 | . 1 . Crush . | . . . Escape Stasis . | . . . Rewire . | . . . Trap . | . . . Miscellaneous . | . . . Route ------- -11/Scrapyard -10/Materials -9/Materials History --------- Turn | Location | Event 13 | -11/Scrapyard | Discovered new exit (range 16) 79 | -11/Scrapyard | Entered Materials 273 | -10/Materials | Discovered new exit (range 16) 320 | -10/Materials | Build established: Mutant 815 | -10/Materials | Core integrity fell below 50% 931 | -10/Materials | Entered another Materials area 931 | -9/Materials | Evolved 2 slots: Utility x2 950 | -9/Materials | Central database locked down 1256 | -9/Materials | Build established: Scavenger-Mutant 1283 | -9/Materials | Core integrity fell below 50% 1294 | -9/Materials | Core integrity fell below 20% 1301 | -9/Materials | Destroyed by L-31 Rogue with Katana Last Messages --------------- 01258_ Med. Laser+ destroyed. 01260_ Acquired 27 matter. 01262_ Critical hit (Burn: +37). 01271_ Aluminum Leg+ destroyed. 01275_ Lgt. Ion Engine+ destroyed. 01276_ Acquired Beam Cannon. 01277_ Aluminum Leg+ destroyed. 01279_ Y-45 Defender destroyed. 01279_ Acquired 5 matter. 01281_ G-34 Mercenary destroyed. 01284_ Acquired Beam Rifle. 01289_ Critical hit (Burn: +37). 01290_ Y-45 Defender suffers critical hit (Burn). 01290_ K-01 Serf collects debris. 01292_ Critical hit (Burn: +37). 01293_ Imp. Ion Engine melted. 01293_ Y-45 Defender destroyed. 01296_ Beam Rifle destroyed. 01297_ Acquired Hvy. Assault Rifle. Map ----- +----------------------------------------------------+ | ??????###########?????????????????????????? | | ??????# #?????????????????????????? | | ??????# #?????????????????????????? | | ??????# #?????????????????????????? | | ??????# #?????????????????????????? | | ??????####+######?????????????????????????? | | ######## #######+######?????????????? | | % +?????????????? | | ######## ### ##??????????? ????? | | ???????# #?#"" [ """ #???????????? #???? | | ???????# #?#"" """ #???????????? #???? | | ???????# #?#"T """ #???????????? ##??? | | ?#######+###"" """ #???????????? #??? | | ?# #"" """ #???????????? ???? | | ?#!! # #???????????? ???? | | ?#! """ # #???????????? ???? | | ?# """ # u #???????????# #???? | | ?# """ + #???????????# #???? | | ?# # #???????????# #???? | | ?# [ # #???????????# #???? | | ?# # ########???## ##??? | | ?########### ]]] ##### #??? | | ???? ]] #??? | | ?????###### ]] ! #??? | | ??????????# ########## l=g=g##### #??? | | ??????????# ?????????# @%%!#######/###??? | | ??????????#+?????????# """!%# #??? | | ?????????? ?????????# """ # #??? | | ??????????""???????? + """ %# #??? | | ??????????""??????! # """ +% #??? | | ??????????""?????[! ?# """ # #??? | | ????????? ???# ??# # #??? | | ???????????????# "???# # #??? | | ???????????????# ????# """ # #??? | | ?????????????????????# """ ###########??? | | ?????????????????????# """ #????????????? | | ?????????????????????# """ #????????????? | | ?????????????????????# """ #????????????? | | ????????????????????? ?? ????????????? | | ?????????????????????????? ????????????? | | ?????????????????????????? ????????????? | | ??????????????????????????## ????????????? | | ???????????????????????????? ????????????? | | ???????????????????????????? ?????????????? | | ???????????????????????????? ?????????????? | | ???????????????????????????? ?????????????? | | ??????????????????????????????????????????? | | ??????????????????????????????????????????? | | ??????????????????????????????????????????? | | ??????????????????????????????????????????? | +----------------------------------------------------+ Best States ------------- Heat Dissipation 38 Energy Generation 11 Energy Capacity 250 Matter Stores 300 Matter Capacity 300 Sight Range 18 Terrain Scan Density 85 Evasion (%) 55 Offensive Hacking 10 Item Schematics ----------------- None Robot Schematics ------------------ None Fabricated ------------ Nothing Repaired ---------- Nothing Studied --------- Lgt. Ion Engine | -9/Materials | Hacked Med. Laser | -9/Materials | Hacked Ion Engine | -9/Materials | Hacked Aluminum Leg | -9/Materials | Hacked Alien Tech Used ----------------- None Achievements -------------- Item+ Spot Them First Challenges ------------ None Game ------ Seed ResetPhaseSlayer Manual? 0 Play Time 00:14:53 Cumulative 19.9 hours Start 2026.01.23 @ 14:58:02 End 2026.01.23 @ 15:11:43 Sessions 1 Manual Loads 0 Difficulty Rogue Special Mode None Game No. 39 Rogue 39 Adventurer 0 Explorer 0 Win Type - Total 0 Types 0/0/0/0/0/0/0/0/0/0 Lore% 11 Gallery% 20 Achievement% 15 Wizard Run 0 Options --------- Layout 1 ASCII 0 Keyboard 1 Movement Arrows Keybinds 0 Fullscreen 1 Font 24/Smallcaps Map View 25x17 Zoom Use 30% Tactical HUD 1 Map Filters NONE Filters NONE Steam 1 RUN: 68c67231-85ea-4088-bc22-51011827b9d5